[Event "Early-Titled-Tuesday-Blitz-May-14-2024"]
[Site "Chess.com"]
[Date "2024.05.14"]
[Round "1"]
[White "DreamsAreFake"]
[Black "pirulillo"]
[Result "1-0"]
[WhiteElo "2769"]
[BlackElo "2436"]
[TimeControl "180+1"]
[EndTime "8:06:43 PDT"]
[Termination "DreamsAreFake won by resignation"]

1. Nf3 {[%clk 0:02:59.5]} 1... Nf6 {[%clk 0:02:58.9]} 2. g3 {[%clk 0:02:51.7]}
2... g6 {[%clk 0:02:57.5]} 3. Bg2 {[%clk 0:02:51.9]} 3... Bg7 {[%clk 0:02:50.6]}
4. O-O {[%clk 0:02:52.8]} 4... O-O {[%clk 0:02:49.9]} 5. d4 {[%clk 0:02:53.5]}
5... d6 {[%clk 0:02:49.6]} 6. c3 {[%clk 0:02:54]} 6... Nbd7 {[%clk 0:02:42.1]}
7. Nbd2 {[%clk 0:02:54]} 7... e5 {[%clk 0:02:41.3]} 8. dxe5 {[%clk 0:02:54.1]}
8... dxe5 {[%clk 0:02:41]} 9. e4 {[%clk 0:02:54.7]} 9... Qe7 {[%clk 0:02:36.4]}
10. Qe2 {[%clk 0:02:54.2]} 10... b6 {[%clk 0:02:35.7]} 11. a4 {[%clk 0:02:53.6]}
11... a5 {[%clk 0:02:34.8]} 12. b3 {[%clk 0:02:54.2]} 12... Ba6 {[%clk
0:02:29.5]} 13. c4 {[%clk 0:02:54.6]} 13... Bb7 {[%clk 0:02:19.1]} 14. Ne1
{[%clk 0:02:54.1]} 14... Nc5 {[%clk 0:02:13.6]} 15. Ba3 {[%clk 0:02:53.9]} 15...
Rfd8 {[%clk 0:02:12.3]} 16. Nc2 {[%clk 0:02:54]} 16... Bf8 {[%clk 0:02:01.7]}
17. Ne3 {[%clk 0:02:50.2]} 17... Qe8 {[%clk 0:01:49.8]} 18. Nd5 {[%clk 0:02:48]}
18... Nxd5 {[%clk 0:01:43.6]} 19. exd5 {[%clk 0:02:48.9]} 19... f5 {[%clk
0:01:41.1]} 20. Rfe1 {[%clk 0:02:45.5]} 20... Bd6 {[%clk 0:01:37.4]} 21. Bxc5
{[%clk 0:02:37.4]} 21... Bxc5 {[%clk 0:01:36.8]} 22. Qxe5 {[%clk 0:02:37.2]}
22... Qxe5 {[%clk 0:01:36.4]} 23. Rxe5 {[%clk 0:02:38.1]} 23... Bd4 {[%clk
0:01:36.5]} 24. Rae1 {[%clk 0:02:36.6]} 24... Bxe5 {[%clk 0:01:35.7]} 25. Rxe5
{[%clk 0:02:37.5]} 25... Re8 {[%clk 0:01:36.1]} 26. f4 {[%clk 0:02:38.2]} 26...
Kf7 {[%clk 0:01:29]} 27. Kf2 {[%clk 0:02:38.2]} 27... Kf6 {[%clk 0:01:27.3]} 28.
Nf3 {[%clk 0:02:37.5]} 28... h6 {[%clk 0:01:27.6]} 29. Ke3 {[%clk 0:02:36.9]}
29... g5 {[%clk 0:01:26.9]} 30. Kd4 {[%clk 0:02:35.4]} 30... Rad8 {[%clk
0:01:25.6]} 31. Ne1 {[%clk 0:02:25]} 31... c5+ {[%clk 0:01:17.6]} 32. Ke3 {[%clk
0:02:17]} 32... Rxe5+ {[%clk 0:01:17]} 33. fxe5+ {[%clk 0:02:17.9]} 33... Kxe5
{[%clk 0:01:16.5]} 34. Nd3+ {[%clk 0:02:18.8]} 34... Kd6 {[%clk 0:01:15]} 35.
Kf2 {[%clk 0:02:19.7]} 35... Rf8 {[%clk 0:01:13.1]} 36. Nc1 {[%clk 0:02:20.2]}
36... Ke5 {[%clk 0:01:11.3]} 37. Ne2 {[%clk 0:02:19.4]} 37... Bc8 {[%clk
0:01:04.2]} 38. Bf3 {[%clk 0:02:18.3]} 38... Bd7 {[%clk 0:01:00.2]} 39. Ke3
{[%clk 0:02:18.4]} 39... Be8 {[%clk 0:00:57.1]} 40. Nc1 {[%clk 0:02:18.4]} 40...
h5 {[%clk 0:00:53.4]} 41. Nd3+ {[%clk 0:02:18.3]} 41... Kd6 {[%clk 0:00:53.9]}
42. Nf2 {[%clk 0:02:17.8]} 42... Rh8 {[%clk 0:00:43.6]} 43. h4 {[%clk
0:02:17.4]} 43... f4+ {[%clk 0:00:35]} 44. gxf4 {[%clk 0:02:18.3]} 44... gxh4
{[%clk 0:00:33.2]} 45. Ne4+ {[%clk 0:02:18.9]} 45... Ke7 {[%clk 0:00:32.3]} 46.
Ng5 {[%clk 0:02:18.5]} 46... Bd7 {[%clk 0:00:30.7]} 47. Bg2 {[%clk 0:02:18.2]}
47... Kf6 {[%clk 0:00:26.7]} 48. Kf3 {[%clk 0:02:12.9]} 48... Bg4+ {[%clk
0:00:24.5]} 49. Kf2 {[%clk 0:02:13.1]} 49... Re8 {[%clk 0:00:24.4]} 50. Ne4+
{[%clk 0:02:13.8]} 50... Kf5 {[%clk 0:00:23.8]} 51. Nd6+ {[%clk 0:02:14]} 51...
Kxf4 {[%clk 0:00:23.5]} 52. Nxe8 {[%clk 0:02:14.9]} 52... h3 {[%clk 0:00:23.4]}
53. Bh1 {[%clk 0:02:13.8]} 53... Ke5 {[%clk 0:00:23]} 54. Nc7 {[%clk 0:02:09.7]}
54... Kd4 {[%clk 0:00:22.6]} 55. Nb5+ {[%clk 0:02:09.5]} 55... Kd3 {[%clk
0:00:22.3]} 56. d6 {[%clk 0:02:10.1]} 56... Bd7 {[%clk 0:00:22]} 57. Na7 {[%clk
0:02:07.9]} 57... Kc3 {[%clk 0:00:21.2]} 58. Bc6 {[%clk 0:02:08.4]} 58... Be6
{[%clk 0:00:21.2]} 59. d7 {[%clk 0:02:04.8]} 59... Bxd7 {[%clk 0:00:21]} 60.
Bxd7 {[%clk 0:02:05.7]} 60... Kxb3 {[%clk 0:00:21.6]} 61. Nc8 {[%clk 0:02:05.9]}
61... Kxc4 {[%clk 0:00:20.5]} 62. Nxb6+ {[%clk 0:02:06.6]} 62... Kb4 {[%clk
0:00:20.6]} 63. Bb5 {[%clk 0:02:06.5]} 63... h4 {[%clk 0:00:19.8]} 64. Nc4
{[%clk 0:02:06.5]} 64... Kc3 {[%clk 0:00:13.9]} 65. Nxa5 {[%clk 0:02:06.4]}
65... h2 {[%clk 0:00:12.5]} 66. Kg2 {[%clk 0:02:06.4]} 66... h3+ {[%clk
0:00:12.4]} 67. Kxh2 {[%clk 0:02:06.6]} 67... Kb4 {[%clk 0:00:13.3]} 68. Nc4
{[%clk 0:02:05.9]} 1-0

[Event "Early-Titled-Tuesday-Blitz-May-14-2024"]
[Site "Chess.com"]
[Date "2024.05.14"]
[Round "1"]
[White "invisible_s0ul"]
[Black "Phuzer"]
[Result "0-1"]
[WhiteElo "2312"]
[BlackElo "2632"]
[TimeControl "180+1"]
[EndTime "8:06:45 PDT"]
[Termination "Phuzer won by resignation"]

1. e4 {[%clk 0:02:59.5]} 1... e5 {[%clk 0:02:59.9]} 2. Nf3 {[%clk 0:02:58.1]}
2... Nc6 {[%clk 0:03:00.1]} 3. Bb5 {[%clk 0:02:58.3]} 3... g6 {[%clk 0:03:00.1]}
4. O-O {[%clk 0:02:57.6]} 4... Bg7 {[%clk 0:02:59.6]} 5. c3 {[%clk 0:02:58.2]}
5... d6 {[%clk 0:02:58.4]} 6. d4 {[%clk 0:02:58.5]} 6... Bd7 {[%clk 0:02:58.9]}
7. Re1 {[%clk 0:02:55.8]} 7... Nf6 {[%clk 0:02:58.6]} 8. Nbd2 {[%clk 0:02:55]}
8... O-O {[%clk 0:02:58.1]} 9. Nf1 {[%clk 0:02:54.8]} 9... Nxd4 {[%clk
0:02:56.9]} 10. Nxd4 {[%clk 0:02:46.1]} 10... exd4 {[%clk 0:02:56.1]} 11. Bxd7
{[%clk 0:02:46.1]} 11... Qxd7 {[%clk 0:02:54.6]} 12. cxd4 {[%clk 0:02:45.9]}
12... c6 {[%clk 0:02:54.4]} 13. Ng3 {[%clk 0:02:43.1]} 13... d5 {[%clk
0:02:54.6]} 14. e5 {[%clk 0:02:42.8]} 14... Ne8 {[%clk 0:02:55.2]} 15. Bf4
{[%clk 0:02:36.6]} 15... Nc7 {[%clk 0:02:54.2]} 16. Qd2 {[%clk 0:02:35.5]} 16...
Ne6 {[%clk 0:02:52.7]} 17. Rad1 {[%clk 0:02:35.5]} 17... Nxf4 {[%clk 0:02:44.1]}
18. Qxf4 {[%clk 0:02:36.4]} 18... Rae8 {[%clk 0:02:44.5]} 19. h4 {[%clk
0:02:35.7]} 19... f6 {[%clk 0:02:44.2]} 20. exf6 {[%clk 0:02:31]} 20... Rxf6
{[%clk 0:02:43.3]} 21. Qg5 {[%clk 0:02:28.5]} 21... h6 {[%clk 0:02:35.6]} 22.
Qd2 {[%clk 0:02:27.6]} 22... Rfe6 {[%clk 0:02:33.1]} 23. Rxe6 {[%clk 0:02:25.1]}
23... Qxe6 {[%clk 0:02:34]} 24. h5 {[%clk 0:02:21.1]} 24... g5 {[%clk
0:02:30.8]} 25. Qd3 {[%clk 0:02:18.4]} 25... Qf7 {[%clk 0:02:28.4]} 26. Qc3
{[%clk 0:01:52.9]} 26... Re6 {[%clk 0:02:21.9]} 27. Re1 {[%clk 0:01:51.4]} 27...
Rxe1+ {[%clk 0:02:20.8]} 28. Qxe1 {[%clk 0:01:52.3]} 28... Bxd4 {[%clk
0:02:20.6]} 29. b3 {[%clk 0:01:34.1]} 29... c5 {[%clk 0:02:11.6]} 30. Ne2 {[%clk
0:01:14.4]} 30... Bg7 {[%clk 0:02:01.4]} 31. Qa5 {[%clk 0:01:09.5]} 31... b6
{[%clk 0:02:00.7]} 32. Qd2 {[%clk 0:01:01.2]} 32... d4 {[%clk 0:02:00.4]} 33.
Ng3 {[%clk 0:00:56.9]} 33... Be5 {[%clk 0:01:53.4]} 34. Qd3 {[%clk 0:00:54.6]}
34... Bxg3 {[%clk 0:01:52.1]} 35. Qxg3 {[%clk 0:00:55.5]} 35... Qd7 {[%clk
0:01:41.2]} 36. Qd3 {[%clk 0:00:39.7]} 36... Qe6 {[%clk 0:01:37.5]} 37. Qg3
{[%clk 0:00:37.5]} 37... Qe1+ {[%clk 0:01:13.3]} 38. Kh2 {[%clk 0:00:37]} 38...
Qe7 {[%clk 0:01:13.9]} 39. Qd3 {[%clk 0:00:22.6]} 39... Qf7 {[%clk 0:01:11.3]}
40. Qh3 {[%clk 0:00:18.7]} 40... Qxf2 {[%clk 0:01:06.3]} 41. Qc8+ {[%clk
0:00:19.2]} 41... Kg7 {[%clk 0:01:03.2]} 42. Qc7+ {[%clk 0:00:13.7]} 42... Qf7
{[%clk 0:01:02.8]} 43. Qe5+ {[%clk 0:00:14]} 43... Kg8 {[%clk 0:01:01.4]} 44.
Qb8+ {[%clk 0:00:13.3]} 44... Kh7 {[%clk 0:01:01.7]} 45. Qe5 {[%clk 0:00:11]}
45... Qf4+ {[%clk 0:01:01.4]} 0-1

[Event "Early-Titled-Tuesday-Blitz-May-14-2024"]
[Site "Chess.com"]
[Date "2024.05.14"]
[Round "1"]
[White "rasmussvane"]
[Black "sakkikuska"]
[Result "1-0"]
[WhiteElo "2974"]
[BlackElo "2534"]
[TimeControl "180+1"]
[EndTime "8:06:46 PDT"]
[Termination "rasmussvane won by resignation"]

1. Nf3 {[%clk 0:03:00.9]} 1... Nf6 {[%clk 0:02:59.4]} 2. g3 {[%clk 0:03:00.2]}
2... g6 {[%clk 0:02:59.7]} 3. Bg2 {[%clk 0:03:00.3]} 3... Bg7 {[%clk 0:03:00.3]}
4. d4 {[%clk 0:03:00.9]} 4... d5 {[%clk 0:03:00.1]} 5. O-O {[%clk 0:03:00.8]}
5... O-O {[%clk 0:03:00.3]} 6. c4 {[%clk 0:03:01.5]} 6... c6 {[%clk 0:03:00.1]}
7. Qb3 {[%clk 0:03:00.9]} 7... dxc4 {[%clk 0:02:46.4]} 8. Qxc4 {[%clk
0:03:00.2]} 8... Na6 {[%clk 0:02:46.9]} 9. Nc3 {[%clk 0:02:59.6]} 9... Bf5
{[%clk 0:02:27.7]} 10. Re1 {[%clk 0:02:53.4]} 10... Ne4 {[%clk 0:02:21.1]} 11.
Qb3 {[%clk 0:02:53.7]} 11... Nxc3 {[%clk 0:02:18.3]} 12. bxc3 {[%clk 0:02:53.5]}
12... Qd7 {[%clk 0:02:07.4]} 13. a4 {[%clk 0:02:41.1]} 13... Be4 {[%clk
0:01:54.2]} 14. Ba3 {[%clk 0:02:39.8]} 14... c5 {[%clk 0:01:42.9]} 15. Ne5
{[%clk 0:02:24.7]} 15... Bxe5 {[%clk 0:01:37.4]} 16. Bxe4 {[%clk 0:02:24.2]}
16... cxd4 {[%clk 0:01:16.1]} 17. Qxb7 {[%clk 0:02:23]} 17... Nc7 {[%clk
0:00:42.1]} 18. cxd4 {[%clk 0:02:21.9]} 18... Qxd4 {[%clk 0:00:40.2]} 19. e3
{[%clk 0:02:04.3]} 19... Qb6 {[%clk 0:00:34.3]} 20. Rab1 {[%clk 0:02:01.6]}
20... Qxb7 {[%clk 0:00:32.7]} 21. Rxb7 {[%clk 0:02:02.5]} 21... a5 {[%clk
0:00:19.6]} 22. Bxe7 {[%clk 0:01:55]} 22... Rfe8 {[%clk 0:00:19.8]} 23. Ba3
{[%clk 0:01:53.5]} 23... Ne6 {[%clk 0:00:17.8]} 24. Rd1 {[%clk 0:01:14.4]} 24...
Rad8 {[%clk 0:00:12.8]} 25. Rxd8 {[%clk 0:01:11]} 25... Rxd8 {[%clk 0:00:13.7]}
26. Rb5 {[%clk 0:01:08.3]} 26... Bc3 {[%clk 0:00:14.1]} 27. Kg2 {[%clk
0:00:57.5]} 27... Rd1 {[%clk 0:00:09.4]} 28. Bd5 {[%clk 0:00:52.1]} 28... Ra1
{[%clk 0:00:08.6]} 29. Rb3 {[%clk 0:00:48.8]} 29... Be5 {[%clk 0:00:08.8]} 30.
f4 {[%clk 0:00:44.9]} 30... Bf6 {[%clk 0:00:08.1]} 31. e4 {[%clk 0:00:40.9]}
31... Nd4 {[%clk 0:00:08.3]} 32. Rb8+ {[%clk 0:00:36.6]} 1-0

[Event "Early-Titled-Tuesday-Blitz-May-14-2024"]
[Site "Chess.com"]
[Date "2024.05.14"]
[Round "1"]
[White "SaqoChess_Twitch"]
[Black "PapaieDudu"]
[Result "1-0"]
[WhiteElo "2683"]
[BlackElo "2369"]
[TimeControl "180+1"]
[EndTime "8:06:47 PDT"]
[Termination "SaqoChess_Twitch won by checkmate"]

1. d4 {[%clk 0:03:00.9]} 1... d5 {[%clk 0:02:34.3]} 2. c4 {[%clk 0:03:01]} 2...
e6 {[%clk 0:02:29.4]} 3. Nc3 {[%clk 0:02:59.7]} 3... Nf6 {[%clk 0:02:26.4]} 4.
cxd5 {[%clk 0:02:59.6]} 4... exd5 {[%clk 0:02:20.2]} 5. Bg5 {[%clk 0:02:58.8]}
5... Be7 {[%clk 0:02:17.6]} 6. e3 {[%clk 0:02:58.6]} 6... c6 {[%clk 0:02:12.5]}
7. Bd3 {[%clk 0:02:57.8]} 7... O-O {[%clk 0:02:12.5]} 8. Nf3 {[%clk 0:02:53.3]}
8... Nbd7 {[%clk 0:02:12]} 9. Qc2 {[%clk 0:02:52.1]} 9... h6 {[%clk 0:02:04.1]}
10. Bh4 {[%clk 0:02:50.8]} 10... Re8 {[%clk 0:02:01.7]} 11. O-O {[%clk
0:02:49.3]} 11... Nf8 {[%clk 0:02:00]} 12. Bxf6 {[%clk 0:02:46.5]} 12... Bxf6
{[%clk 0:02:00]} 13. b4 {[%clk 0:02:47.4]} 13... g6 {[%clk 0:01:56.8]} 14. b5
{[%clk 0:02:45.9]} 14... Bd7 {[%clk 0:01:48]} 15. bxc6 {[%clk 0:02:43.7]} 15...
Bxc6 {[%clk 0:01:46.4]} 16. Rab1 {[%clk 0:02:43]} 16... a6 {[%clk 0:01:45.2]}
17. Na4 {[%clk 0:02:37.9]} 17... Bg7 {[%clk 0:01:40]} 18. Nc5 {[%clk 0:02:34]}
18... Re7 {[%clk 0:01:36.3]} 19. Rb2 {[%clk 0:02:26.1]} 19... Ne6 {[%clk
0:01:34.6]} 20. Nxe6 {[%clk 0:02:25.2]} 20... Rxe6 {[%clk 0:01:33.5]} 21. Rfb1
{[%clk 0:02:24]} 21... Qd7 {[%clk 0:01:29.6]} 22. Nd2 {[%clk 0:02:22.5]} 22...
Rae8 {[%clk 0:01:24]} 23. Nb3 {[%clk 0:02:21.5]} 23... Qc8 {[%clk 0:01:04.3]}
24. Nc5 {[%clk 0:02:19.2]} 24... R6e7 {[%clk 0:01:03.8]} 25. Rc1 {[%clk
0:02:14.6]} 25... Rc7 {[%clk 0:01:01.7]} 26. Qd2 {[%clk 0:02:12.3]} 26... Ree7
{[%clk 0:00:54.2]} 27. Rbc2 {[%clk 0:02:05.9]} 27... Be8 {[%clk 0:00:49.3]} 28.
Nb3 {[%clk 0:02:01.8]} 28... Rxc2 {[%clk 0:00:46.8]} 29. Rxc2 {[%clk 0:01:59]}
29... Rc7 {[%clk 0:00:46]} 30. h3 {[%clk 0:01:57.5]} 30... Ba4 {[%clk
0:00:42.3]} 31. Rxc7 {[%clk 0:01:54]} 31... Qxc7 {[%clk 0:00:42.2]} 32. Nc5
{[%clk 0:01:54.9]} 32... Bc6 {[%clk 0:00:39.7]} 33. Qb4 {[%clk 0:01:51.1]} 33...
Bf8 {[%clk 0:00:32.6]} 34. Qc3 {[%clk 0:01:49.3]} 34... Bg7 {[%clk 0:00:30]} 35.
Nb3 {[%clk 0:01:46.7]} 35... Qb6 {[%clk 0:00:27]} 36. Qc5 {[%clk 0:01:36.7]}
36... Qd8 {[%clk 0:00:20.9]} 37. Na5 {[%clk 0:01:33.5]} 37... Bf8 {[%clk
0:00:13.6]} 38. Nxc6 {[%clk 0:01:21]} 38... Qc7 {[%clk 0:00:11.1]} 39. Qxd5
{[%clk 0:01:19.9]} 39... bxc6 {[%clk 0:00:09.9]} 40. Qc4 {[%clk 0:01:20]} 40...
a5 {[%clk 0:00:09.3]} 41. Bxg6 {[%clk 0:01:19.7]} 41... Kg7 {[%clk 0:00:08.9]}
42. Be4 {[%clk 0:01:19.4]} 42... Qb8 {[%clk 0:00:04.8]} 43. g3 {[%clk
0:01:18.9]} 43... Bd6 {[%clk 0:00:03.7]} 44. Kg2 {[%clk 0:01:18.9]} 44... Bc7
{[%clk 0:00:01.6]} 45. Qxc6 {[%clk 0:01:19]} 45... Bd8 {[%clk 0:00:02.1]} 46.
Bd5 {[%clk 0:01:19.2]} 46... Bf6 {[%clk 0:00:02.4]} 47. Qd7 {[%clk 0:01:19.5]}
47... Qf8 {[%clk 0:00:02.6]} 48. Qg4+ {[%clk 0:01:19.8]} 48... Kh8 {[%clk
0:00:02.8]} 49. Qf5 {[%clk 0:01:20.1]} 49... Bg7 {[%clk 0:00:03]} 50. Be4 {[%clk
0:01:20.8]} 50... Kg8 {[%clk 0:00:01.4]} 51. Qh7# {[%clk 0:01:20.5]} 1-0

[Event "Early-Titled-Tuesday-Blitz-May-14-2024"]
[Site "Chess.com"]
[Date "2024.05.14"]
[Round "1"]
[White "Hasangatin_Ramil"]
[Black "youngdinousaur"]
[Result "1-0"]
[WhiteElo "2693"]
[BlackElo "2378"]
[TimeControl "180+1"]
[EndTime "8:06:48 PDT"]
[Termination "Hasangatin_Ramil won by checkmate"]

1. e4 {[%clk 0:03:00.6]} 1... c5 {[%clk 0:02:59.6]} 2. Nf3 {[%clk 0:03:00.1]}
2... e6 {[%clk 0:02:59.9]} 3. g3 {[%clk 0:03:00]} 3... Nc6 {[%clk 0:02:59.8]} 4.
Bg2 {[%clk 0:03:00]} 4... Nf6 {[%clk 0:03:00.3]} 5. d3 {[%clk 0:03:00.3]} 5...
d5 {[%clk 0:03:00.2]} 6. Qe2 {[%clk 0:03:00.6]} 6... Be7 {[%clk 0:02:59.5]} 7.
e5 {[%clk 0:03:01.2]} 7... Nd7 {[%clk 0:02:59.9]} 8. c4 {[%clk 0:03:01.8]} 8...
Qc7 {[%clk 0:02:43.8]} 9. Bf4 {[%clk 0:02:58.4]} 9... dxc4 {[%clk 0:02:34.5]}
10. dxc4 {[%clk 0:02:57.8]} 10... b6 {[%clk 0:02:35]} 11. Nc3 {[%clk 0:02:55.1]}
11... Bb7 {[%clk 0:02:35.5]} 12. O-O {[%clk 0:02:54.8]} 12... O-O {[%clk
0:02:35.1]} 13. Nd5 {[%clk 0:02:53.5]} 13... exd5 {[%clk 0:02:13.4]} 14. cxd5
{[%clk 0:02:54.4]} 14... Nb4 {[%clk 0:01:52]} 15. d6 {[%clk 0:02:46.9]} 15...
Qd8 {[%clk 0:01:45.1]} 16. dxe7 {[%clk 0:02:43.3]} 16... Qxe7 {[%clk 0:01:46]}
17. Rfe1 {[%clk 0:02:34.3]} 17... Rfe8 {[%clk 0:01:40.3]} 18. a3 {[%clk
0:01:57.2]} 18... Ba6 {[%clk 0:01:18.5]} 19. Qd2 {[%clk 0:01:56.6]} 19... Nd3
{[%clk 0:01:16.7]} 20. Bg5 {[%clk 0:01:56.9]} 20... Qe6 {[%clk 0:01:04.8]} 21.
Re3 {[%clk 0:01:55.3]} 21... h6 {[%clk 0:00:22.4]} 22. Bh4 {[%clk 0:01:53.7]}
22... g5 {[%clk 0:00:17.6]} 23. Bxg5 {[%clk 0:01:44.1]} 23... hxg5 {[%clk
0:00:17.4]} 24. Nxg5 {[%clk 0:01:44.4]} 24... Qb3 {[%clk 0:00:16.4]} 25. Bxa8
{[%clk 0:01:39.8]} 25... Rxa8 {[%clk 0:00:17.3]} 26. e6 {[%clk 0:01:30.8]} 26...
fxe6 {[%clk 0:00:15.9]} 27. Rxe6 {[%clk 0:01:18.7]} 27... N7e5 {[%clk
0:00:15.2]} 28. Qe3 {[%clk 0:01:05.5]} 28... Bb7 {[%clk 0:00:12.9]} 29. Rxe5
{[%clk 0:00:59.8]} 29... Rf8 {[%clk 0:00:05.8]} 30. Rf1 {[%clk 0:00:50.8]} 30...
Qxb2 {[%clk 0:00:04.9]} 31. Re7 {[%clk 0:00:44.9]} 31... Nxf2 {[%clk 0:00:02]}
32. Qe6+ {[%clk 0:00:40.7]} 32... Kh8 {[%clk 0:00:01.1]} 33. Qh6+ {[%clk
0:00:39.7]} 33... Kg8 {[%clk 0:00:00.8]} 34. Qh7# {[%clk 0:00:39.6]} 1-0

[Event "Early-Titled-Tuesday-Blitz-May-14-2024"]
[Site "Chess.com"]
[Date "2024.05.14"]
[Round "1"]
[White "Byniolus"]
[Black "AttilaTurzo"]
[Result "1-0"]
[WhiteElo "2828"]
[BlackElo "2476"]
[TimeControl "180+1"]
[EndTime "8:06:49 PDT"]
[Termination "Byniolus won by checkmate"]

1. d4 {[%clk 0:03:00.9]} 1... d5 {[%clk 0:02:58.5]} 2. Nf3 {[%clk 0:03:00.6]}
2... Nf6 {[%clk 0:02:57.4]} 3. Bf4 {[%clk 0:03:00.8]} 3... c5 {[%clk 0:02:57.1]}
4. c3 {[%clk 0:03:01.1]} 4... cxd4 {[%clk 0:02:55.9]} 5. cxd4 {[%clk 0:03:01.2]}
5... Nc6 {[%clk 0:02:56.3]} 6. Nc3 {[%clk 0:03:01.8]} 6... a6 {[%clk 0:02:56.3]}
7. e3 {[%clk 0:03:02.2]} 7... Bg4 {[%clk 0:02:56.8]} 8. Bd3 {[%clk 0:03:02.5]}
8... e6 {[%clk 0:02:56.7]} 9. Qb3 {[%clk 0:03:02.6]} 9... Na5 {[%clk 0:02:54]}
10. Qa4+ {[%clk 0:03:01.9]} 10... Nc6 {[%clk 0:02:50.1]} 11. Ne5 {[%clk
0:03:00.3]} 11... Qb6 {[%clk 0:02:48.8]} 12. O-O {[%clk 0:02:26]} 12... Rc8
{[%clk 0:02:47.2]} 13. Rfc1 {[%clk 0:02:09.3]} 13... Be7 {[%clk 0:02:47]} 14. a3
{[%clk 0:01:56.5]} 14... O-O {[%clk 0:02:44.7]} 15. Bg5 {[%clk 0:01:56.6]} 15...
Qc7 {[%clk 0:02:18.4]} 16. Bxf6 {[%clk 0:01:47.6]} 16... Bxf6 {[%clk 0:02:16.9]}
17. Nxg4 {[%clk 0:01:47.9]} 17... Be7 {[%clk 0:01:46.1]} 18. f4 {[%clk
0:01:39.4]} 18... f5 {[%clk 0:01:40.4]} 19. Ne5 {[%clk 0:01:38.7]} 19... Nxe5
{[%clk 0:01:40]} 20. fxe5 {[%clk 0:01:37.1]} 20... Bg5 {[%clk 0:01:34.6]} 21.
Re1 {[%clk 0:01:15]} 21... Qb6 {[%clk 0:01:34.6]} 22. Qb4 {[%clk 0:01:11.1]}
22... Qc7 {[%clk 0:01:32.2]} 23. g3 {[%clk 0:01:07.4]} 23... h5 {[%clk 0:01:30]}
24. h4 {[%clk 0:01:02.8]} 24... Bh6 {[%clk 0:01:26.6]} 25. Rac1 {[%clk
0:00:58.4]} 25... Qf7 {[%clk 0:01:24.2]} 26. Kg2 {[%clk 0:00:49.6]} 26... Qg6
{[%clk 0:01:17.3]} 27. Rc2 {[%clk 0:00:34.2]} 27... Qg4 {[%clk 0:01:09.7]} 28.
Be2 {[%clk 0:00:27.9]} 28... Qg6 {[%clk 0:01:07.9]} 29. Bd3 {[%clk 0:00:22.9]}
29... Qg4 {[%clk 0:01:07.5]} 30. Rf2 {[%clk 0:00:18.8]} 30... f4 {[%clk
0:01:02.7]} 31. exf4 {[%clk 0:00:19.7]} 31... Rxf4 {[%clk 0:00:59.6]} 32. Rxf4
{[%clk 0:00:14.3]} 32... Bxf4 {[%clk 0:00:58.9]} 33. Ne2 {[%clk 0:00:14.8]}
33... Rf8 {[%clk 0:00:53.2]} 34. Rf1 {[%clk 0:00:13.4]} 34... Rf7 {[%clk
0:00:50.6]} 35. Rxf4 {[%clk 0:00:12.1]} 35... Rxf4 {[%clk 0:00:49.3]} 36. Nxf4
{[%clk 0:00:13]} 36... Qd1 {[%clk 0:00:49.7]} 37. Qc3 {[%clk 0:00:08.9]} 37...
g5 {[%clk 0:00:48]} 38. hxg5 {[%clk 0:00:08.6]} 38... h4 {[%clk 0:00:47.8]} 39.
Qc8+ {[%clk 0:00:06.3]} 39... Kg7 {[%clk 0:00:46.8]} 40. Qd7+ {[%clk 0:00:06.5]}
40... Kh8 {[%clk 0:00:44.8]} 41. Qh7# {[%clk 0:00:06.5]} 1-0

[Event "Early-Titled-Tuesday-Blitz-May-14-2024"]
[Site "Chess.com"]
[Date "2024.05.14"]
[Round "1"]
[White "Baronessa08"]
[Black "Arteler"]
[Result "1-0"]
[WhiteElo "2596"]
[BlackElo "2217"]
[TimeControl "180+1"]
[EndTime "8:06:51 PDT"]
[Termination "Baronessa08 won by checkmate"]

1. c4 {[%clk 0:02:57.5]} 1... Nf6 {[%clk 0:02:59.6]} 2. Nc3 {[%clk 0:02:57.2]}
2... g6 {[%clk 0:03:00.2]} 3. Nf3 {[%clk 0:02:56.7]} 3... Bg7 {[%clk 0:03:00.8]}
4. g3 {[%clk 0:02:57.3]} 4... d6 {[%clk 0:03:01.4]} 5. Bg2 {[%clk 0:02:57.8]}
5... O-O {[%clk 0:03:02.1]} 6. d4 {[%clk 0:02:57.8]} 6... Nc6 {[%clk 0:03:02.5]}
7. O-O {[%clk 0:02:57.3]} 7... a6 {[%clk 0:03:03.1]} 8. d5 {[%clk 0:02:55.8]}
8... Na5 {[%clk 0:03:02.9]} 9. Nd2 {[%clk 0:02:51.5]} 9... c5 {[%clk 0:02:51.5]}
10. Qc2 {[%clk 0:02:48.3]} 10... Bd7 {[%clk 0:02:41.7]} 11. b3 {[%clk
0:02:44.2]} 11... Rb8 {[%clk 0:02:36.2]} 12. Bb2 {[%clk 0:02:43.9]} 12... b5
{[%clk 0:02:36.6]} 13. Rab1 {[%clk 0:02:41.3]} 13... bxc4 {[%clk 0:02:26.9]} 14.
bxc4 {[%clk 0:02:41.2]} 14... Qc7 {[%clk 0:02:04.6]} 15. h3 {[%clk 0:02:30.5]}
15... Rb7 {[%clk 0:01:54.9]} 16. Ba1 {[%clk 0:02:28.2]} 16... Rfb8 {[%clk
0:01:55.4]} 17. Rxb7 {[%clk 0:02:26.1]} 17... Rxb7 {[%clk 0:01:56.3]} 18. e4
{[%clk 0:02:23.4]} 18... Qb8 {[%clk 0:01:51.2]} 19. Re1 {[%clk 0:02:07]} 19...
Rb4 {[%clk 0:01:51.2]} 20. Bf1 {[%clk 0:02:06.8]} 20... Qc8 {[%clk 0:01:40.3]}
21. Kh2 {[%clk 0:02:06.3]} 21... Qb8 {[%clk 0:01:39.6]} 22. f4 {[%clk
0:02:05.8]} 22... h5 {[%clk 0:01:34.7]} 23. e5 {[%clk 0:02:00.6]} 23... Ne8
{[%clk 0:01:35.1]} 24. e6 {[%clk 0:01:57.9]} 24... Bc8 {[%clk 0:01:30.8]} 25.
exf7+ {[%clk 0:01:54.8]} 25... Kxf7 {[%clk 0:01:31.7]} 26. Nde4 {[%clk 0:01:14]}
26... Bf5 {[%clk 0:01:24.3]} 27. Ng5+ {[%clk 0:01:14.1]} 27... Kg8 {[%clk
0:01:23.5]} 28. Bd3 {[%clk 0:01:14.8]} 28... Qc8 {[%clk 0:01:09.2]} 29. Rxe7
{[%clk 0:00:59.7]} 29... Rxc4 {[%clk 0:00:51.4]} 30. Bxf5 {[%clk 0:00:56.7]}
30... gxf5 {[%clk 0:00:52.3]} 31. Ne6 {[%clk 0:00:40.8]} 31... Bf6 {[%clk
0:00:48.6]} 32. Qxf5 {[%clk 0:00:34.7]} 32... Bxe7 {[%clk 0:00:16.8]} 33. Qg6+
{[%clk 0:00:34.8]} 33... Kh8 {[%clk 0:00:15.9]} 34. Nb5+ {[%clk 0:00:34.9]}
34... Nf6 {[%clk 0:00:15.4]} 35. Bxf6+ {[%clk 0:00:28.7]} 35... Bxf6 {[%clk
0:00:16.3]} 36. Qxf6+ {[%clk 0:00:29.1]} 36... Kg8 {[%clk 0:00:16.9]} 37. Qg7#
{[%clk 0:00:29.4]} 1-0